Cogmind - Beta 15 @@@ ROGUE MODE // 2025.09.15 @ 17:13:55 Player: TapeIsSticky Result: Self-destructed Performance ------------- Evolutions (9) 4500 Regions Visited (23) 4600 Robots Destroyed (228) 1140 Value Destroyed (11086) 11086 Prototype IDs (64) 1280 Alien Tech Used (6) 1200 Bonus (12444) 12444 TOTAL SCORE: 36250 Bonus ------- High Alert Combat Kills 205 Follower Combat Kills 2334 Network Hubs Disabled 400 Registered with UFD 300 Met Zhirov 300 Built Enhanced Grunts 300 Met R17 at Cetus 500 Found Hidden Lab 3000 Used Core Reset Matrix 3000 Met R17 at Research 2000 Scanned by Researcher 500 Friendly Fire -395 Cogmind --------- Core Integrity 1299/1600 Matter 32/300 Energy 100/100 System Corruption 60% Temperature Cool (0) Movement Core (450) Ox8 Location -1/Access Parts ------- > --- POWER (4) -------- (None) > --- PROPULSION (6) --- (None) > --- UTILITY (11) ----- (None) > --- WEAPON (4) ------- Heavy Machine Gun Perforator > --- INVENTORY (5) ---- Advanced Energy Well (500) Linear Accelerator Omega Cannon Peak State ------------ > --- POWER ------------ Micro Antimatter Reactor Compact Particle Reactor Cooled Antimatter Reactor > --- PROPULSION ------- Enhanced Armored Medium Treads Enhanced Armored Medium Treads Centrium Heavy Treads Centrium Heavy Treads > --- UTILITY ---------- Huge Storage Unit Advanced Sensor Array Advanced Signal Interpreter Experimental Terrain Scan Processor Advanced Targeting Computer Advanced Transmission Jammer Medium Regenerative Plating Graphene Brace Deep Network Scanner Ghost Barrier > --- WEAPON ----------- Hypervelocity Railgun Hypervelocity Railgun Sigix Broadsword > --- INVENTORY -------- Particle Reactor Micro Antimatter Reactor Heavy Treads Experimental Power Amplifier Advanced Energy Well Advanced Matter Compressor IFF Parser Improved Armor Integrity Analyzer Precision Energy Filter Improved Focal Shield Long-range Tractor Beam Stealth Drone Bay Transdimensional Reconstructor Hypervelocity Railgun Hypervelocity Railgun Linear Accelerator Compact Mass Driver Perforator Omega Cannon Gamma Bomb Array Neutron Missile Launcher [Rating: 205] Favorites ----------- Power Quantum Reactor Engine Ion Engine Power Core Neutrino Core Reactor Quantum Reactor Propulsion Light Treads Treads Light Treads Wheel Armored Wheel Utility Advanced Targeting Computer Device Scrap Suit Storage High-capacity Storage Unit Processor Advanced Targeting Computer Hackware Deep Network Scanner Protection Centrium Medium Armor Plating Weapon Hypervelocity Railgun Energy Gun Subdweller Laser Energy Cannon Neutron Cannon Ballistic Gun Hypervelocity Railgun Ballistic Cannon Bore Cannon Launcher Grenade Launcher Special Weapon CPS Tube Slashing Weapon Sigix Broadsword Build | -11 -10 -10 -10 -8 -8 -6 -6 -6 -6 -6 -5 -5 -5 -5 -4 -4 -4 -4 -3 -3 -2 -2 -1 ------- Run | Yrd Mat Min Sub Rec Scr Fac Ext Cet Arc Hub Fac Upp Upp Zhi Pro Fac Arm Lab Res Tes Res Qua Acc Slots Evolved 18 | . . . . . . 8 . . . . 2 . . . . 2 . . 2 . 2 . 2 Power 3 | . . . . . . 1 . . . . . . . . . . . . 1 . . . 1 Propulsion 4 | . . . . . . 2 . . . . . . . . . 1 . . 1 . . . . Utility 9 | . . . . . . 4 . . . . 2 . . . . 1 . . . . 1 . 1 Weapon 2 | . . . . . . 1 . . . . . . . . . . . . . . 1 . . Parts Attached 229 | 7 4 7 18 4 7 19 22 17 8 . 7 5 2 4 1 3 17 2 23 29 10 7 6 Power 33 | 1 1 1 2 1 2 4 4 3 1 . . . . 1 . . 1 . 2 6 1 1 1 Engine 13 | 1 1 1 2 1 2 2 3 . . . . . . . . . . . . . . . . Core 4 | . . . . . . 2 1 . . . . . . . . . 1 . . . . . . Reactor 16 | . . . . . . . . 3 1 . . . . 1 . . . . 2 6 1 1 1 Propulsion 35 | 2 . 2 3 1 2 3 6 5 . . . 1 . . . . . . 3 1 2 4 . Treads 29 | 2 . 2 1 . 2 3 6 3 . . . . . . . . . . 3 1 2 4 . Leg . | . . . . . . . . . . . . . . . . . . . . . . . . Wheel 6 | . . . 2 1 . . . 2 . . . 1 . . . . . . . . . . . Hover . | . . . . . . . . . . . . . . . . . . . . . . . . Flight . | . . . . . . . . . . . . . . . . . . . . . . . . Utility 98 | 2 1 2 4 . 2 9 6 6 5 . 6 3 1 3 1 2 5 1 16 16 7 . . Device 52 | 1 . 1 . . . 4 3 1 4 . 6 3 1 1 1 1 2 . 8 11 4 . . Storage 9 | 1 1 . 1 . 1 . . 1 . . . . . 1 . 1 1 . 1 . . . . Processor 13 | . . . . . . . 1 . . . . . . . . . 2 . 3 4 3 . . Hackware 3 | . . . . . . . . . . . . . . . . . . . 2 1 . . . Protection 21 | . . 1 3 . 1 5 2 4 1 . . . . 1 . . . 1 2 . . . . Artifact . | . . . . . . . . . . . . . . . . . . . . . . . . Weapon 63 | 2 2 2 9 2 1 3 6 3 2 . 1 1 1 . . 1 11 1 2 6 . 2 5 Energy Gun 6 | 1 . . 4 . . . . . . . . . . . . . . 1 . . . . . Energy Cannon 5 | . . . 1 . . . . 1 1 . . 1 . . . . 1 . . . . . . Ballistic Gun 33 | 1 2 1 2 2 1 3 1 1 1 . 1 . 1 . . 1 7 . 2 2 . . 4 Ballistic Cannon 9 | . . . . . . . 5 . . . . . . . . . . . . 3 . 1 . Launcher 8 | . . 1 2 . . . . . . . . . . . . . 3 . . 1 . . 1 Special Weapon 1 | . . . . . . . . 1 . . . . . . . . . . . . . . . Impact Weapon . | . . . . . . . . . . . . . . . . . . . . . . . . Slashing Weapon 1 | . . . . . . . . . . . . . . . . . . . . . . 1 . Piercing Weapon . | . . . . . . . . . . . . . . . . . . . . . . . . Special Melee Weapon . | . . . . . . . . . . . . . . . . . . . . . . . . Unidentified Prototypes 38 | . . . . . . . . 4 1 . . 1 . 4 . . 7 5 4 9 2 . 1 Corrupted Parts 7 | . . . . . . . . . 2 . . . . . . . . . . . . 1 4 System Corruption 67 | . . . . . . . . . 17 . . . . . . . . . . . . 10 40 Parts Lost 66 | . . 2 6 1 . . 8 1 . 2 . . . . 2 4 4 . 4 7 2 8 15 Power 8 | . . . 1 . . . 1 . . . . . . . . . . . 2 1 . 2 1 Propulsion 20 | . . 2 3 1 . . 3 1 . . . . . . . . 1 . . 2 1 3 3 Utility 19 | . . . 1 . . . 2 . . 1 . . . . 2 2 3 . 1 2 . 2 3 Weapon 19 | . . . 1 . . . 2 . . 1 . . . . . 2 . . 1 2 1 1 8 Highest Loss Streak 15 | . . 1 3 1 . . 4 1 . 2 . . . . 2 2 2 . 3 2 1 8 15 To Critical Strikes 3 | . . . . . . . . 1 . . . . . . . . 1 . . . . . 1 Average Backups 16 | 2 10 14 9 25 26 16 17 17 17 17 16 17 18 18 17 18 21 21 21 20 19 19 10 Power 2 | . 1 1 1 5 4 2 2 2 3 3 3 2 2 2 2 3 2 2 . 1 2 1 . Propulsion 2 | . 1 3 . 1 5 3 2 2 2 2 2 2 2 2 2 2 2 2 1 1 . 1 . Utility 6 | . 3 5 4 9 9 6 7 6 6 7 7 8 9 8 6 6 8 7 8 8 8 8 6 Weapon 5 | . 3 5 3 8 7 4 4 5 5 5 4 4 5 5 5 6 8 10 9 8 6 6 4 Tool/Special . | . . . . . . . . . . . . . . . . . . . . . . . . Unused Backups 53 | . 4 1 2 . 9 1 5 6 . . . 2 1 2 1 1 8 . 5 2 1 . 2 Power 7 | . . . . . 4 . 1 . . . . 1 . . . . 1 . . . . . . Propulsion 5 | . 2 . . . . . 2 1 . . . . . . . . . . . . . . . Utility 20 | . 1 . . . 4 . 1 2 . . . . 1 2 1 . 1 . 4 1 . . 2 Weapon 21 | . 1 1 2 . 1 1 1 3 . . . 1 . . . 1 6 . 1 1 1 . . Tool/Special . | . . . . . . . . . . . . . . . . . . . . . . . . Average Slot Usage (%) 83 | . 99 99 80 82 85 98 91 74 80 81 84 86 82 82 81 77 74 64 80 84 88 83 67 Engine 8 | . 14 14 13 14 13 11 5 7 6 6 . . . . . . . . . . . . . Reactor 5 | . . . . . . . . 8 12 12 11 11 11 11 11 10 10 10 13 13 13 12 10 Treads 11 | . 27 27 9 . 6 25 26 14 6 6 5 5 5 5 5 5 5 5 9 14 15 14 10 Wheel 8 | . . . 10 25 21 . . 2 12 12 11 9 5 5 5 5 5 5 2 . . . . Device 9 | . 14 8 . . . 14 13 7 12 18 19 23 23 22 22 23 20 21 15 13 13 13 17 Storage 8 | . 14 14 8 14 13 6 6 6 6 6 5 5 5 5 5 5 5 5 4 4 4 4 3 Processor 3 | . . . . . . . . 6 6 6 5 5 5 5 5 5 5 10 8 10 13 13 10 Hackware 1 | . . . . . . . . . . . . . . . . . . . 3 7 8 7 3 Protection 5 | . . 5 7 . 2 17 12 11 5 . 5 5 5 5 5 6 7 1 3 3 3 3 . Energy Gun 1 | . 6 . 4 2 . . . . . . . . . . . . . . . . . . . Energy Cannon 2 | . . . . . . . . 5 10 12 4 5 5 5 4 5 3 3 2 3 3 . . Ballistic Gun 14 | . 21 21 21 25 26 19 3 . . . 10 11 10 11 11 9 10 1 10 10 12 6 5 Ballistic Cannon 1 | . . . . . . . 15 . . . . . . . . . . . . . . 2 6 Peak Build Rating 205 | 7 9 12 15 20 21 57 73 118 105 101 114 119 119 117 116 129 138 129 171 185 191 205 172 Average Rating 68 | 5 7 9 12 18 18 47 64 99 103 99 109 114 115 113 114 123 129 107 156 171 187 199 146 On Entrance 88 | . 7 8 11 15 19 19 57 66 98 105 78 112 119 113 115 116 120 121 129 170 176 191 155 Naked Turns 3 | . . . . . . . . . . . . . . . . . . . . . . . 3 Heaviest Build 213 | 14 30 36 212 212 213 88 122 127 125 119 120 120 120 115 115 162 171 160 185 178 162 169 177 Greatest Support 235 | 40 40 40 40 28 40 83 102 160 16 16 16 20 20 20 20 20 20 20 230 235 230 230 168 Greatest Overweight (x) 41 | . 4 1 17 17 7 1 1 7 41 7 7 7 5 5 5 8 8 7 9 1 1 1 5 Average Overweight (x) 4 | . . . 5 8 5 . . 1 16 6 7 6 5 5 5 5 7 6 6 . . . . Largest Inventory Capacity 35 | 8 15 15 35 35 35 20 20 20 20 20 20 20 20 20 20 25 25 25 25 25 25 25 25 Average Capacity 22 | 7 11 15 21 35 31 20 20 20 20 20 20 20 20 20 20 21 25 25 25 25 25 25 22 Most Carried 35 | 4 15 15 19 30 35 20 20 20 20 19 20 20 20 20 20 24 25 25 25 25 24 25 15 Average Carried 18 | 2 10 14 9 26 27 17 19 19 19 19 18 19 19 19 19 20 24 23 23 24 23 24 12 Final Capacity 35 | 8 15 15 35 35 20 20 20 20 20 20 20 20 20 20 20 25 25 25 25 25 25 25 5 Final Carried 30 | 4 15 15 19 30 20 20 20 20 19 19 19 20 20 20 19 24 21 25 25 25 23 15 4 Class Distribution -------------------- 26% | Hauler-Mutant 25% | Scavenger-Tank 18% | Mutant 9% | Scavenger-Mutant 4% | Hacker-Tank 3% | Hacker-Gunner Dominant Class ---------------- Mutant | -10/Materials Mutant | -10/Mines Hauler-Mutant | -10/Subcaves Hauler-Mutant | -8/Recycling Hauler-Mutant | -8/Scraptown Scavenger-Tank | -6/Factory Commander-Tank | -6/Extension Scavenger-Mutant | -6/Cetus Scavenger-Tank | -6/Archives Scavenger-Tank | -6/Hub_04(d) Scavenger-Tank | -5/Factory Scavenger-Tank | -5/Upper Caves Scavenger-Tank | -5/Upper Caves Scavenger-Tank | -5/Zhirov Scavenger-Tank | -4/Proximity Caves Scavenger-Tank | -4/Factory Scavenger-Tank | -4/Armory Scavenger-Mutant | -4/Lab Hacker-Gunner | -3/Research Hacker-Tank | -3/Testing Hacker-Skirmisher | -2/Research Hacker-Mutant | -2/Quarantine Generator-Skirmisher | -1/Access Resources | -11 -10 -10 -10 -8 -8 -6 -6 -6 -6 -6 -5 -5 -5 -5 -4 -4 -4 -4 -3 -3 -2 -2 -1 ----------- Run | Yrd Mat Min Sub Rec Scr Fac Ext Cet Arc Hub Fac Upp Upp Zhi Pro Fac Arm Lab Res Tes Res Qua Acc Matter Collected 12585 | 302 243 372 710 229 155 615 1428 190 92 . 31 212 80 400 152 185 842 . 1567 1765 652 1529 834 Remotely 3522 | . . . . . . . 138 . . . . . . . . 107 87 . 884 844 231 897 334 Salvage Created 12700 | 226 336 236 478 415 . 779 1113 409 237 . 61 90 157 360 410 657 1203 . 982 2288 354 1556 353 Parts 676 | 16 18 3 29 14 . 43 42 22 22 . 1 8 9 6 11 36 61 . 47 159 29 83 17 Haulers Intercepted 3 | . 2 . . . . 1 . . . . . . . . . . . . . . . . . Recyclers Shooed 9 | 1 . . . 1 . 2 1 . . . . . . . . . . . . . . . 4 Parts Field Recycled . | . . . . . . . . . . . . . . . . . . . . . . . . Retrieved Matter . | . . . . . . . . . . . . . . . . . . . . . . . . Parts Self-Destructed 74 | . . . 10 . . . . . . . . 37 17 2 8 . . . . . . . . Prevented 4 | . . . . . . . . . . . . . . 4 . . . . . . . . . Kills | -11 -10 -10 -10 -8 -8 -6 -6 -6 -6 -6 -5 -5 -5 -5 -4 -4 -4 -4 -3 -3 -2 -2 -1 ------- Run | Yrd Mat Min Sub Rec Scr Fac Ext Cet Arc Hub Fac Upp Upp Zhi Pro Fac Arm Lab Res Tes Res Qua Acc Combat Hostiles Destroyed 180 | . 7 9 15 1 . 14 14 6 1 . 1 1 3 . 6 17 18 . 14 26 4 19 4 Melee 11 | . . . . . . . . . . . . . . . . . . . . . . 11 . Guns 102 | . 5 5 9 1 . 14 4 . . . 1 1 2 . 4 7 10 . 7 23 4 3 2 Cannons 30 | . . . 1 . . . 7 2 . . . . . . 1 9 1 . 1 3 . 3 2 AOE 23 | . 1 4 5 . . . 3 . . . . . 1 . 1 1 2 . 4 . . 1 . Classes Destroyed 24 | 3 4 1 2 1 . 3 3 . . . . . . . 1 . 1 . 3 1 . 1 . Worker 11 | 1 . . . . . . 1 . . . . . . . . . . . 1 4 . 3 1 Builder 11 | . . . . . . 1 . . . . . . . . . 1 . . 1 3 2 2 1 Tunneler 7 | 6 . . . . . . 1 . . . . . . . . . . . . . . . . Hauler 3 | . 2 . . . . 1 . . . . . . . . . . . . . . . . . Recycler 10 | 1 . 2 . 5 . . 2 . . . . . . . . . . . . . . . . Operator 7 | . . . . . . . 1 . 5 . . . . . . . . . . 1 . . . Watcher 5 | . 2 . . . . . 1 1 . . . . . . . . . . . 1 . . . Swarmer 37 | . 3 . 4 . . 5 . . . . . . 2 . 1 11 4 . 4 3 . . . Grunt 42 | . 4 . 2 . . 3 5 . . . 1 . 1 . 1 4 1 . 4 7 . 7 2 Brawler 7 | . . . . . . . 1 . . . . . . . 2 . 3 . . . . 1 . Duelist 2 | . . . . . . . 1 . . . . . . . . . . . . 1 . . . Researcher 2 | . . . . . . . . . . . . . . . . . . . . 2 . . . Sentry 24 | . . . . 1 . 2 7 . 1 . . 1 . . 1 . 1 . 3 3 2 2 . Demolisher 1 | . . . . . . . . . . . . . . . . . . . 1 . . . . Specialist 1 | . . . . . . . . . . . . . . . . . 1 . . . . . . Hunter 10 | . . . . . . 2 . . . . . . . . . . 6 . . 2 . . . Programmer 28 | . . . . . . 2 . . . . . . . . 1 2 2 . . 10 2 8 1 Q-Series 2 | . . . . . . . . . . . . . . . . . . . . . . 1 1 Cetus Guard 6 | . . . . . . . . 6 . . . . . . . . . . . . . . . Striker 1 | . . . . . . . . . . . . . . . . . . . 1 . . . . Artisan 1 | . . . 1 . . . . . . . . . . . . . . . . . . . . Subdweller 9 | . . . 9 . . . . . . . . . . . . . . . . . . . . Scrapoid 1 | . . . . . . . . . . . . . . . 1 . . . . . . . . Assembled 9 | . . 9 . . . . . . . . . . . . . . . . . . . . . Revision 1 | . . . . . . . . . . . . . . . . . . . 1 . . . . Best Kill Streak 5 | 3 3 4 4 3 . 4 4 3 2 . 1 1 2 . 5 4 4 . 5 5 3 3 3 Combat Bots Only 5 | . 3 4 4 1 . 3 3 3 1 . 1 1 2 . 5 4 4 . 4 4 2 2 1 Max Kills in Single Turn 3 | 1 1 2 2 2 . 2 3 1 1 . 1 1 1 . 2 1 2 . 2 2 1 1 1 Gunslinging 1 | . . . . . . 1 . . . . . . . . 1 . . . . 1 . . . Exploded 2 | . 1 2 2 . . . 1 . . . . . 1 . 1 1 2 . 2 . . 1 . Melee 1 | . . . . . . . . . . . . . . . . . . . . . . 1 . Uniques/NPCs Destroyed . | . . . . . . . . . . . . . . . . . . . . . . . . Combat | -11 -10 -10 -10 -8 -8 -6 -6 -6 -6 -6 -5 -5 -5 -5 -4 -4 -4 -4 -3 -3 -2 -2 -1 -------- Run | Yrd Mat Min Sub Rec Scr Fac Ext Cet Arc Hub Fac Upp Upp Zhi Pro Fac Arm Lab Res Tes Res Qua Acc Hostile Shots Fired 1748 | . 39 16 87 21 . 137 360 38 10 23 6 6 23 . 25 114 121 . 64 236 25 258 139 Missed 549 | . 10 10 23 2 . 43 135 18 4 6 1 2 11 . 8 24 43 . 16 66 5 76 46 Hits 1199 | . 29 6 64 19 . 94 225 20 6 17 5 4 12 . 17 90 78 . 48 170 20 182 93 Melee 8 | . . . . . . . 2 . . . . . . . 1 . . . . 5 . . . Projectile 1191 | . 29 6 64 19 . 94 223 20 6 17 5 4 12 . 16 90 78 . 48 165 20 182 93 AOE 57 | . . . . . . . 5 . . . . . . . . . 2 . 2 . . 2 46 Critical Strikes 46 | . 2 . 2 . . 2 1 3 . 1 1 . . . . 2 3 . 2 8 3 8 8 Actively Blocked 7 | . . . . . . . . . . . . . . . . . . . . . . 7 . Part Disruptions 9 | . . 1 . . . . . . . . . . . . . . . . . 2 . 4 2 Damage Taken 24067 | . 423 213 1394 264 . 1194 2369 637 144 333 97 91 187 . 288 1953 1417 . 1265 3785 456 5329 2228 Core 1864 | . 35 23 75 41 . 106 183 31 21 41 . 24 12 . . 182 68 . 93 355 22 251 301 Absorbed by Shields 155 | . . . . 17 . . 47 26 . . . . . . 65 . . . . . . . . Reduced by Siege Mode 312 | . . . . . . . . . . . . . . . . . . . . 152 31 83 46 Regen/Repaired (Parts) 2768 | . . . . . . . . 21 4 . . . . . . 8 94 . 282 565 977 817 . Core Remaining (%) 74 | 100 . . . . 30 . . . . 55 . . . . 96 . . 98 . 65 . 76 . Volleys Fired 1021 | 32 46 25 86 20 . 52 55 33 30 6 23 12 10 30 37 63 71 7 75 172 33 53 50 Largest 4 | 2 2 2 2 2 . 3 3 1 2 1 2 3 3 1 3 3 3 1 3 3 4 4 3 Hottest 225 | 70 70 40 120 88 . 84 144 40 75 90 90 160 160 81 158 160 185 105 185 185 225 188 148 Shots Fired 1773 | 64 90 41 120 40 . 152 140 33 31 6 25 22 14 30 47 91 127 7 129 323 61 92 88 Gun 1089 | 64 90 32 99 40 . 151 57 . 1 . 4 10 5 . 13 34 71 . 69 219 37 46 47 Cannon 611 | . . . 7 . . . 74 31 30 6 21 12 7 30 30 57 45 7 53 104 24 35 38 Launcher 71 | . . 9 14 . . 1 9 . . . . . 2 . 4 . 11 . 7 . . 11 3 Special 2 | . . . . . . . . 2 . . . . . . . . . . . . . . . Kinetic 1128 | 32 64 32 48 35 . 151 131 . 1 . 4 10 5 . 13 34 71 . 69 219 43 81 85 Thermal 543 | 32 26 . 59 5 . . . 31 30 6 21 12 7 . 30 57 45 7 53 104 18 . . Explosive 42 | . . 9 13 . . 1 9 . . . . . 2 . 4 . 1 . 3 . . . . Electromagnetic 58 | . . . . . . . . . . . . . . 30 . . 10 . 4 . . 11 3 Robot Hit Streak 29 | 8 9 4 15 9 . 13 8 9 9 . 6 6 5 29 12 8 13 . 21 17 13 14 17 Robot Miss Streak 12 | 3 5 5 2 2 . 7 6 3 1 . 1 1 1 1 2 4 4 . 3 5 2 4 12 Penetration Max 2 | . . . . . . 1 1 . . . . . 1 . . 1 1 . 1 2 1 2 1 Secondary Targets 18 | . 1 . 3 . . 2 2 . . . . . . . 2 . 1 . . 4 1 2 . Max Gunslinging Chain 1 | . 1 . 1 . . 1 1 . . . . . . . 1 . 1 . . 1 1 1 . Shots Hit Robots 969 | 38 50 11 56 31 . 102 73 25 13 . 5 11 6 29 14 43 57 . 62 164 30 98 51 Core Hits 554 | 13 20 15 25 12 . 44 46 6 7 . 2 3 8 19 15 30 39 . 39 85 14 53 59 Critical Kills 72 | . . . 1 . . . 7 4 1 . . 1 1 . 2 3 9 . 6 27 4 5 1 Critical Parts Destroyed 116 | . . . . . . 1 10 . . . . . 1 . 1 4 11 . 13 36 9 12 18 Critical Strikes 230 | 3 2 . 1 1 . 1 20 4 1 . . 2 2 . 3 7 21 . 24 63 14 31 30 Burn 5 | 3 2 . . . . . . . . . . . . . . . . . . . . . . Meltdown 6 | . . . . . . . . 4 1 . . . . . . . . . . 1 . . . Destroy 215 | . . . 1 1 . 1 20 . . . . 2 2 . 3 7 21 . 24 62 13 29 29 Blast 2 | . . . . . . . . . . . . . . . . . . . . . 1 . 1 Sever 2 | . . . . . . . . . . . . . . . . . . . . . . 2 . Melee Attacks 53 | . . . . . . . . . . . . . . . . . . . . . . 53 . Impact . | . . . . . . . . . . . . . . . . . . . . . . . . Slashing 53 | . . . . . . . . . . . . . . . . . . . . . . 53 . Piercing . | . . . . . . . . . . . . . . . . . . . . . . . . Sneak Attacks 5 | . . . . . . . . . . . . . . . . . . . . . . 5 . Combat Hostiles 1 | . . . . . . . . . . . . . . . . . . . . . . 1 . Follow-up Attacks . | . . . . . . . . . . . . . . . . . . . . . . . . Damage Inflicted 25875 | 398 678 387 1382 685 . 1724 2682 1252 791 . 170 339 265 238 700 1640 1754 . 1811 2489 413 4895 1182 Guns 10253 | 398 552 180 916 684 . 1706 939 . 23 . 57 245 129 . 259 628 339 . 470 1527 318 365 518 Cannons 7799 | . . . 53 . . . 1002 1252 768 . 113 94 77 238 130 798 486 . 241 942 77 1006 522 Explosions 4961 | . 108 185 413 . . . 713 . . . . . 59 . 311 169 929 . 1100 . . 832 142 Melee 2692 | . . . . . . . . . . . . . . . . . . . . . . 2692 . Ramming 170 | . 18 22 . 1 . 18 28 . . . . . . . . 45 . . . 20 18 . . Kinetic 11879 | 134 368 180 483 621 . 1706 1941 . 23 . 57 245 129 . 259 628 339 . 470 1527 358 1371 1040 Thermal 6125 | 264 184 . 527 63 . . . 1252 768 . 113 94 77 . 130 875 486 . 241 942 37 72 . Explosive 2590 | . 108 185 372 . . . 713 . . . . . 59 . 311 . 313 . 529 . . . . Electromagnetic 2419 | . . . . . . . . . . . . . . 238 . 92 616 . 571 . . 760 142 Impact . | . . . . . . . . . . . . . . . . . . . . . . . . Slashing 2692 | . . . . . . . . . . . . . . . . . . . . . . 2692 . Piercing . | . . . . . . . . . . . . . . . . . . . . . . . . Highest Corruption 60 | . . . . . . . . . 11 . . . . . . 3 4 4 . 16 4 48 60 Average Corruption 6 | . . . . . . . . . 5 . . . . . . 2 3 4 . 6 3 8 31 Corruption Purged 17 | . . . . . . . . . 17 . . . . . . . . . . . . . . Corruption Blocked . | . . . . . . . . . . . . . . . . . . . . . . . . Effects 123 | . . . . . . . . . 6 . . . . . . 5 26 9 . 33 3 33 8 Message Errors 37 | . . . . . . . . . 2 . . . . . . 2 10 2 . 8 1 8 4 Matter Fused 21 | . . . . . . . . . 1 . . . . . . 1 4 1 . 6 2 6 . Heat Flow Errors 16 | . . . . . . . . . 2 . . . . . . 1 2 . . 3 . 7 1 Energy Discharges 9 | . . . . . . . . . . . . . . . . . 4 2 . . . 2 1 Parts Fused 1 | . . . . . . . . . . . . . . . . . . . . 1 . . . Data Loss (minor) 18 | . . . . . . . . . 1 . . . . . . . 2 4 . 6 . 5 . Data Loss (major) 8 | . . . . . . . . . . . . . . . . 1 1 . . 4 . 2 . Misfires 4 | . . . . . . . . . . . . . . . . . 1 . . 1 . 2 . Alerts 1 | . . . . . . . . . . . . . . . . . . . . 1 . . . Weapon Failures 8 | . . . . . . . . . . . . . . . . . 2 . . 3 . 1 2 Overload Shots . | . . . . . . . . . . . . . . . . . . . . . . . . Overflow Damage 824 | . . 2 . . . . 9 28 53 . . . . 4 . 26 24 . 22 32 . 608 16 Projectiles 236 | . . . . . . . 8 28 53 . . . . 4 . 17 22 . . 32 . 60 12 Explosions 44 | . . 2 . . . . 1 . . . . . . . . 9 2 . 22 . . 4 4 Melee 544 | . . . . . . . . . . . . . . . . . . . . . . 544 . Knockbacks 33 | . . . . . . . 6 . . . . . . . . . . . . . . 19 8 Impact 1 | . . . . . . . 1 . . . . . . . . . . . . . . . . Kinetic 30 | . . . . . . . 5 . . . . . . . . . . . . . . 17 8 Secondary 2 | . . . . . . . . . . . . . . . . . . . . . . 2 . Self-Inflicted Damage 674 | . 99 125 . . . . . . . . . . . . . 78 50 . 8 . . 253 61 Shots 40 | . 1 4 . . . . . . . . . . . . . 2 2 . 1 . . 23 7 Rammed 19 | . 4 3 . 1 . 3 3 . 1 . . . . . . 2 . . . 1 1 . . Targets Rammed 19 | . 4 3 . 1 . 3 3 . 1 . . . . . . 2 . . . 1 1 . . Kicked . | . . . . . . . . . . . . . . . . . . . . . . . . Crushed . | . . . . . . . . . . . . . . . . . . . . . . . . Highest Temperature 352 | 150 230 16 108 225 . . 190 27 173 349 147 60 96 90 186 298 342 . 336 352 114 225 213 Average Temperature 59 | 48 64 9 33 75 . . 44 14 43 158 57 20 31 39 66 52 87 . 89 48 36 107 47 Received Heat Transfer 2982 | . 144 100 342 90 . 150 559 72 18 81 63 27 . . 47 285 187 . 171 211 9 360 66 Effects 8 | . 2 . . . . . . . . 1 . . . . . . 1 . 3 1 . . . Shutdowns 2 | . . . . . . . . . . 1 . . . . . . . . . 1 . . . Energy Bleed 1 | . 1 . . . . . . . . . . . . . . . . . . . . . . Interference 5 | . 1 . . . . . . . . . . . . . . . 1 . 3 . . . . Siege Activations 14 | . . . . . . . . . . . . . . . . 1 . . 1 2 1 8 1 Total Turns 189 | . . . . . . . . . . . . . . . . 14 . . 7 35 20 102 11 Longest Duration 43 | . . . . . . . . . . . . . . . . 14 . . 7 18 20 43 11 Martial Activations . | . . . . . . . . . . . . . . . . . . . . . . . . Shielding Activations . | . . . . . . . . . . . . . . . . . . . . . . . . Robots Disrupted . | . . . . . . . . . . . . . . . . . . . . . . . . Combat Hostiles . | . . . . . . . . . . . . . . . . . . . . . . . . Robots Corrupted 8 | . . . . . . . . . . . . . . . . . 5 . 2 . . 1 . Combat Hostiles 8 | . . . . . . . . . . . . . . . . . 5 . 2 . . 1 . Parts Fried 9 | . . . . . . . 1 . . . . . . 1 . . 3 . 1 . . 2 1 Impact Corruptions . | . . . . . . . . . . . . . . . . . . . . . . . . Robots Melted 7 | . 1 . . . . . . 4 1 . . . . . . . . . . 1 . . . Combat Hostiles 6 | . 1 . . . . . . 4 1 . . . . . . . . . . . . . . Parts Melted 16 | 1 1 . 3 . . . . 2 2 . . . . . . . . . . 7 . . . Heat Transferred 4213 | 999 703 . 649 75 . . . . . . . . . . . 50 481 . 231 888 37 100 . Parts Sabotaged . | . . . . . . . . . . . . . . . . . . . . . . . . Parts Stolen . | . . . . . . . . . . . . . . . . . . . . . . . . Parts Stripped . | . . . . . . . . . . . . . . . . . . . . . . . . Power Chain Reactions 4 | . . . . . . . . . . . . . . . . 2 . . . . . 2 . Alert | -11 -10 -10 -10 -8 -8 -6 -6 -6 -6 -6 -5 -5 -5 -5 -4 -4 -4 -4 -3 -3 -2 -2 -1 ------- Run | Yrd Mat Min Sub Rec Scr Fac Ext Cet Arc Hub Fac Upp Upp Zhi Pro Fac Arm Lab Res Tes Res Qua Acc Maximum Alert Level 3 | . . . . . . 1 3 2 . . . . . . . 1 2 . 1 1 . . . Low Security (%) 83 | 100 100 100 . 100 . 91 55 1 100 100 100 . . . . 27 50 . 58 77 100 100 100 Level 1 13 | . . . . . . 8 10 88 . . . . . . . 72 41 . 41 22 . . . Level 2 2 | . . . . . . . 23 10 . . . . . . . . 7 . . . . . . Level 3 1 | . . . . . . . 10 . . . . . . . . . . . . . . . . Level 4 . | . . . . . . . . . . . . . . . . . . . . . . . . Level 5 . | . . . . . . . . . . . . . . . . . . . . . . . . High Security . | . . . . . . . . . . . . . . . . . . . . . . . . Max Security . | . . . . . . . . . . . . . . . . . . . . . . . . Peak Influence 798 | 15 179 45 . 39 . 230 798 414 152 115 49 . . . . 359 418 . 329 264 111 150 92 Initial 414 | . . 3 . 34 . . 88 414 95 . 29 . . . . . 135 . . 109 37 51 78 Average 85 | 1 41 4 . 6 . 99 249 310 12 47 10 . . . . 223 224 . 164 88 37 54 22 Influence Increases 8663 | 40 274 115 254 221 . 429 1594 244 180 186 116 360 214 18 161 584 903 . 615 1018 295 605 237 Destroy 0b10 Robot/C 4460 | . 140 . 120 80 . 280 780 160 80 80 40 220 140 . 120 340 500 . 280 560 80 380 80 Destroy 0b10 Robot/NC 335 | 40 20 10 . 25 . 10 65 10 25 5 . . 5 15 . 5 . . 10 45 10 25 10 Destroy Leader 700 | . 38 . 10 . . 82 96 . . 22 10 30 20 . 10 50 100 . 70 82 30 50 . Allied During Kill 1081 | . . . 4 9 . . 588 58 54 18 15 110 49 3 31 . 142 . . . . . . Successful Hack 278 | . 16 4 . 17 . . 14 . . . 2 . . . . 20 . . 44 49 88 . 24 Select Force Hacks 140 | . . . . 90 . . . . . 50 . . . . . . . . . . . . . Disable Machine 390 | . 30 30 . . . . 15 . 15 . 15 . . . . 30 60 . 15 120 30 15 15 Destroy Structure 964 | . 30 71 . . . 12 36 16 6 11 34 . . . . 94 86 . 166 132 57 120 93 Partial Spotted 15 | . . . . . . . . . . . . . . . . 15 . . . . . . . Lose Combat Pursuer 300 | . . . 120 . . 45 . . . . . . . . . 30 15 . 30 30 . 15 15 Influence Decreases 8628 | 40 264 125 182 293 . 247 1035 747 418 125 177 270 304 18 161 306 781 400 420 1146 269 567 333 Entered New Map 1413 | . . 7 . 38 . . 94 327 143 . 32 . 18 . . . 143 400 . 86 30 42 53 Time Decay 5373 | 40 264 93 172 255 . 247 353 310 275 50 123 230 286 18 133 266 398 . 380 581 229 445 225 Lost Part 471 | . . 20 10 . . . 58 10 . 20 . . . . 20 40 40 . 40 68 10 80 55 Lost Ally 810 | . . 5 . . . . 380 100 . 55 22 40 . . 8 . 200 . . . . . . Purge Threat 561 | . . . . . . . 150 . . . . . . . . . . . . 411 . . . Squads Dispatched 52 | . 1 . . . . 4 6 . . 2 2 . . . . 5 4 . 11 8 3 4 2 Investigation 12 | . 1 . . . . . 2 . . 1 1 . . . . 1 1 . 5 . . . . Extermination 16 | . . . . . . 1 . . . . 1 . . . . 1 2 . . 5 2 3 1 Reinforcement 20 | . . . . . . 1 2 . . 1 . . . . . 3 1 . 6 3 1 1 1 Assault 2 | . . . . . . . 2 . . . . . . . . . . . . . . . . Garrison 2 | . . . . . . 2 . . . . . . . . . . . . . . . . . Intercept . | . . . . . . . . . . . . . . . . . . . . . . . . Searches Triggered . | . . . . . . . . . . . . . . . . . . . . . . . . Construction Impeded 3 | . . . . . . . 2 . . . . . . . . . . . . . . . 1 Haulers Reinforced 4 | . . . . . . . . . . . . . . . . . . . 3 . . 1 . Active Scanning Responses . | . . . . . . . . . . . . . . . . . . . . . . . . Cargo Convoy Interrupts . | . . . . . . . . . . . . . . . . . . . . . . . . Stealth | -11 -10 -10 -10 -8 -8 -6 -6 -6 -6 -6 -5 -5 -5 -5 -4 -4 -4 -4 -3 -3 -2 -2 -1 --------- Run | Yrd Mat Min Sub Rec Scr Fac Ext Cet Arc Hub Fac Upp Upp Zhi Pro Fac Arm Lab Res Tes Res Qua Acc Distress Signals 17 | . . 1 . . . . 3 2 . 1 . . . . . . . . 6 4 . . . Communications Jammed 60 | . . . . . . . . . . . . . . . . 2 18 . 2 28 1 9 . Distress Signals 60 | . . . . . . . . . . . . . . . . 2 18 . 2 28 1 9 . Times Spotted 343 | . 17 9 19 4 . 21 52 10 9 5 2 7 8 . 6 30 24 . 27 41 6 32 14 Peak Tracking Total 10 | . 3 2 4 1 . 5 6 5 1 3 1 3 5 . 5 10 4 . 5 4 2 7 6 Tactical Retreats 13 | . . . 2 . . 2 . . . . . . . . . 2 1 . 2 2 . 1 1 Traps | -11 -10 -10 -10 -8 -8 -6 -6 -6 -6 -6 -5 -5 -5 -5 -4 -4 -4 -4 -3 -3 -2 -2 -1 ------- Run | Yrd Mat Min Sub Rec Scr Fac Ext Cet Arc Hub Fac Upp Upp Zhi Pro Fac Arm Lab Res Tes Res Qua Acc Traps Triggered 12 | . 1 . 2 . . . 3 . . . . . . . . . . . 4 1 . 1 . Indirectly 4 | . . . . . . . . . . . . . . . . . . . 3 . . 1 . Trap Hack Attempts . | . . . . . . . . . . . . . . . . . . . . . . . . Triggered . | . . . . . . . . . . . . . . . . . . . . . . . . Disarmed . | . . . . . . . . . . . . . . . . . . . . . . . . Reprogrammed . | . . . . . . . . . . . . . . . . . . . . . . . . Reused . | . . . . . . . . . . . . . . . . . . . . . . . . Traps Extracted . | . . . . . . . . . . . . . . . . . . . . . . . . Installed . | . . . . . . . . . . . . . . . . . . . . . . . . Triggered . | . . . . . . . . . . . . . . . . . . . . . . . . Machines | -11 -10 -10 -10 -8 -8 -6 -6 -6 -6 -6 -5 -5 -5 -5 -4 -4 -4 -4 -3 -3 -2 -2 -1 ---------- Run | Yrd Mat Min Sub Rec Scr Fac Ext Cet Arc Hub Fac Upp Upp Zhi Pro Fac Arm Lab Res Tes Res Qua Acc Machines Disabled 33 | . 2 2 4 . . . 2 . 1 . 1 . . . . 3 4 1 1 8 2 1 1 Max in Single Turn 2 | . 1 1 2 . . . . . 1 . 1 . . . . 1 1 1 1 1 1 1 1 Garrison Access 2 | . . . . . . . . . . . . . . . . . . . . 1 . 1 . Network Hub 2 | . . . . . . . . . . 2 . . . . . . . . . . . . . Energy Cycler 1 | . . . . . . . 1 . . . . . . . . . . . . . . . . Machines Repaired . | . . . . . . . . . . . . . . . . . . . . . . . . Machines Dismantled . | . . . . . . . . . . . . . . . . . . . . . . . . Machines Sabotaged 1 | . . . . . . . . . . 1 . . . . . . . . . . . . . Overloaded Fab Kills . | . . . . . . . . . . . . . . . . . . . . . . . . Hacking | -11 -10 -10 -10 -8 -8 -6 -6 -6 -6 -6 -5 -5 -5 -5 -4 -4 -4 -4 -3 -3 -2 -2 -1 --------- Run | Yrd Mat Min Sub Rec Scr Fac Ext Cet Arc Hub Fac Upp Upp Zhi Pro Fac Arm Lab Res Tes Res Qua Acc Machines Accessed 59 | . 9 1 2 8 1 . 8 . . 2 3 . 1 4 . 2 1 . 4 6 4 2 1 Terminals 36 | . 7 1 . 5 . . 6 . . 2 . . 1 . . 1 1 . 3 5 2 1 1 Fabricators 1 | . . . . . . . . . . . . . . . . 1 . . . . . . . Repair Stations 3 | . . . . . . . . . . . 1 . . . . . . . . . 2 . . Recycling Units 8 | . 2 . . 3 . . 2 . . . 1 . . . . . . . . . . . . Scanalyzers . | . . . . . . . . . . . . . . . . . . . . . . . . Garrison Access 4 | . . . . . . . . . . . 1 . . . . . . . 1 1 . 1 . Total Hacks 227 | . 33 1 4 24 20 . 16 . . 4 4 . 1 17 . 7 3 . 15 39 25 11 3 Successful 123 | . 17 1 4 14 20 . 6 . . 2 2 . 1 17 . 4 1 . 3 20 8 1 2 Failed 104 | . 16 . . 10 . . 10 . . 2 2 . . . . 3 2 . 12 19 17 10 1 Catastrophic 19 | . . . . 1 . . 2 . . 1 1 . . . . 1 1 . 3 4 3 2 . Database Lockouts . | . . . . . . . . . . . . . . . . . . . . . . . . Manual 107 | . 30 . . 19 . . 8 1 . 1 2 . . . . 2 . . 10 15 17 . 2 Terminals 155 | . 29 1 . 20 . . 13 . . 4 . . 1 . . 3 3 . 12 36 20 10 3 Fabricators 4 | . . . . . . . . . . . . . . . . 4 . . . . . . . Repair Stations 6 | . . . . . . . . . . . 1 . . . . . . . . . 5 . . Recycling Units 13 | . 4 . . 4 . . 3 . . . 2 . . . . . . . . . . . . Scanalyzers . | . . . . . . . . . . . . . . . . . . . . . . . . Garrison Access 8 | . . . . . . . . . . . 1 . . . . . . . 3 3 . 1 . Terminal Hacks 81 | . 5 1 4 3 20 . 3 . . 1 . . 1 17 . 2 1 . 2 17 3 . 1 Record 34 | . . . 3 1 20 . . . . . . . 1 5 . . . . . 3 . . 1 Part Schematic 5 | . 1 . . . . . . . . . . . . 4 . . . . . . . . . Robot Analysis 9 | . 4 . . 1 . . . . . . . . . 4 . . . . . . . . . Prototype ID Bank 4 | . . . . . . . . . . . . . . 4 . . . . . . . . . Open Door 2 | . . . . . . . 1 . . . . . . . . . 1 . . . . . . Level Access Points 1 | . . . . . . . . . . . . . . . . . . . . 1 . . . Branch Access Points 3 | . . . . . . . . . . . . . . . . 1 . . 1 . 1 . . Terminal Index 1 | . . . . . . . . . . . . . . . . . . . . . 1 . . Garrison Index 1 | . . . . . . . . . . . . . . . . . . . 1 . . . . Alert Level 6 | . . . . . . . 1 . . . . . . . . 1 . . . 4 . . . Unreport Threat 5 | . . . . . . . 1 . . . . . . . . . . . . 4 . . . Locate Traps 1 | . . . . . . . . . . . . . . . . . . . . 1 . . . Dispatch Records 1 | . . 1 . . . . . . . . . . . . . . . . . . . . . Transport Status 1 | . . . . 1 . . . . . . . . . . . . . . . . . . . Recall Investigation 1 | . . . . . . . . . . 1 . . . . . . . . . . . . . Recall Extermination 1 | . . . . . . . . . . . . . . . . . . . . 1 . . . Registered Components 1 | . . . . . . . . . . . . . . . . . . . . 1 . . . Registered Prototypes 1 | . . . . . . . . . . . . . . . . . . . . . 1 . . Zone Layout 2 | . . . . . . . . . . . . . . . . . . . . 2 . . . Proto ID Catalog 1 | . . . 1 . . . . . . . . . . . . . . . . . . . . Fabricator Hacks 2 | . . . . . . . . . . . . . . . . 2 . . . . . . . Load Schematic 1 | . . . . . . . . . . . . . . . . 1 . . . . . . . Build 1 | . . . . . . . . . . . . . . . . 1 . . . . . . . Repair Station Hacks 5 | . . . . . . . . . . . 1 . . . . . . . . . 4 . . Scan Component 3 | . . . . . . . . . . . 1 . . . . . . . . . 2 . . Repair 2 | . . . . . . . . . . . . . . . . . . . . . 2 . . Recycling Unit Hacks 3 | . 3 . . . . . . . . . . . . . . . . . . . . . . Retrieve Components 3 | . 3 . . . . . . . . . . . . . . . . . . . . . . Scanalyzer . | . . . . . . . . . . . . . . . . . . . . . . . . Garrison Access Hacks 2 | . . . . . . . . . . . . . . . . . . . . 1 . 1 . Seal Access 2 | . . . . . . . . . . . . . . . . . . . . 1 . 1 . Unauthorized Hacks 30 | . 9 . . 11 . . 3 . . 1 1 . . . . . . . 1 2 1 . 1 Terminals 24 | . 9 . . 8 . . 1 . . 1 . . . . . . . . 1 2 1 . 1 Assimilate 1 | . . . . 1 . . . . . . . . . . . . . . . . . . . Botnet 10 | . 2 . . 2 . . 1 . . . . . . . . . . . 1 2 1 . 1 Skim 12 | . 7 . . 5 . . . . . . . . . . . . . . . . . . . Sabotage 1 | . . . . . . . . . . 1 . . . . . . . . . . . . . Fabricators . | . . . . . . . . . . . . . . . . . . . . . . . . Repair Stations . | . . . . . . . . . . . . . . . . . . . . . . . . Recycling Units 6 | . . . . 3 . . 2 . . . 1 . . . . . . . . . . . . Tunnel 3 | . . . . 3 . . . . . . . . . . . . . . . . . . . Scrapoids 3 | . . . . . . . 2 . . . 1 . . . . . . . . . . . . Scanalyzers . | . . . . . . . . . . . . . . . . . . . . . . . . Garrison Access . | . . . . . . . . . . . . . . . . . . . . . . . . Data Cores Recovered 2 | . . . . . . . 1 . . . . . . . . . . . . 1 . . . Used . | . . . . . . . . . . . . . . . . . . . . . . . . Hacking Detections 37 | . 8 . . 5 . . 7 . . 1 1 . . . . 2 1 . 3 4 3 1 1 Full Trace Events 4 | . 1 . . 2 . . . . . . . . . . . 1 . . . . . . . Feedback Events . | . . . . . . . . . . . . . . . . . . . . . . . . Feedback Blocked . | . . . . . . . . . . . . . . . . . . . . . . . . Robot Schematics Acquired 1 | . . . . . . . . . . . . . . . . . . . . 1 . . . Robots Built . | . . . . . . . . . . . . . . . . . . . . . . . . Authchips . | . . . . . . . . . . . . . . . . . . . . . . . . Time . | . . . . . . . . . . . . . . . . . . . . . . . . Total Robot Build Rating . | . . . . . . . . . . . . . . . . . . . . . . . . Part Schematics Acquired 11 | . 1 . . . . . . . . . . . . 4 . . . . . 6 . . . Parts Built 1 | . . . . . . . . . . . . . . . . 1 . . . . . . . Authchips . | . . . . . . . . . . . . . . . . . . . . . . . . Time 25 | . . . . . . . . . . . . . . . . 25 . . . . . . . Total Part Build Rating 1 | . . . . . . . . . . . . . . . . 1 . . . . . . . Parts Repaired 2 | . . . . . . . . . . . . . . . . . . . . . 2 . . Time 58 | . . . . . . . . . . . . . . . . . . . . . 58 . . Parts Recycled . | . . . . . . . . . . . . . . . . . . . . . . . . Recycled Matter . | . . . . . . . . . . . . . . . . . . . . . . . . Retrieved Matter . | . . . . . . . . . . . . . . . . . . . . . . . . Retrieved Components 12 | . 12 . . . . . . . . . . . . . . . . . . . . . . Parts Scanalyzed . | . . . . . . . . . . . . . . . . . . . . . . . . Part Schematics Acquired . | . . . . . . . . . . . . . . . . . . . . . . . . Parts Damaged . | . . . . . . . . . . . . . . . . . . . . . . . . Bothacking | -11 -10 -10 -10 -8 -8 -6 -6 -6 -6 -6 -5 -5 -5 -5 -4 -4 -4 -4 -3 -3 -2 -2 -1 ------------ Run | Yrd Mat Min Sub Rec Scr Fac Ext Cet Arc Hub Fac Upp Upp Zhi Pro Fac Arm Lab Res Tes Res Qua Acc Used RIF Installer . | . . . . . . . . . . . . . . . . . . . . . . . . Robots Hacked . | . . . . . . . . . . . . . . . . . . . . . . . . Non-combat . | . . . . . . . . . . . . . . . . . . . . . . . . Combat . | . . . . . . . . . . . . . . . . . . . . . . . . Robot Hacks Applied . | . . . . . . . . . . . . . . . . . . . . . . . . Relay Couplers Released . | . . . . . . . . . . . . . . . . . . . . . . . . Fabnet Peak Effective % . | . . . . . . . . . . . . . . . . . . . . . . . . Robots Rewired 18 | . . . . 3 . . 15 . . . . . . . . . . . . . . . . Allies Hacked . | . . . . . . . . . . . . . . . . . . . . . . . . Hacks Repelled . | . . . . . . . . . . . . . . . . . . . . . . . . Allies | -11 -10 -10 -10 -8 -8 -6 -6 -6 -6 -6 -5 -5 -5 -5 -4 -4 -4 -4 -3 -3 -2 -2 -1 -------- Run | Yrd Mat Min Sub Rec Scr Fac Ext Cet Arc Hub Fac Upp Upp Zhi Pro Fac Arm Lab Res Tes Res Qua Acc Total Allies 52 | . . 3 . 3 . . 26 5 . . 5 . . . . . 10 . . . . . . Largest Group 18 | . . 3 2 3 3 . 18 6 3 3 5 5 3 3 3 . 10 . . . . . . Highest-Rated Group 519 | . . 40 24 64 64 . 495 519 224 224 238 235 141 141 141 . 481 . . . . . . Highest-Rated Ally 159 | . . 16 16 27 27 . 159 159 96 96 50 47 47 47 47 . 58 . . . . . . Total Orders 69 | . . 1 . . 1 . . 2 2 . 13 8 15 4 2 . 19 . . . . . 2 STAY 16 | . . 1 . . 1 . . 1 1 . . 3 2 2 1 . 4 . . . . . . FOLLOW 8 | . . . . . . . . 1 1 . . 3 . 2 1 . . . . . . . . EXPLORE 28 | . . . . . . . . . . . 10 1 7 . . . 9 . . . . . 1 RETURN 17 | . . . . . . . . . . . 3 1 6 . . . 6 . . . . . 1 Ally Attacks 432 | . . 11 10 4 . . 220 23 11 26 4 66 12 . 10 . 35 . . . . . . Total Damage 9609 | . . 96 128 94 . . 4270 1141 276 1016 115 1318 177 . 140 . 838 . . . . . . Kills 74 | . . 1 . 3 . . 35 4 3 5 1 10 4 . . . 8 . . . . . . Allies Corrupted 3 | . . . . . . . 1 . . 1 . . . . . . 1 . . . . . . Allies Melted . | . . . . . . . . . . . . . . . . . . . . . . . . Intel | -11 -10 -10 -10 -8 -8 -6 -6 -6 -6 -6 -5 -5 -5 -5 -4 -4 -4 -4 -3 -3 -2 -2 -1 ------- Run | Yrd Mat Min Sub Rec Scr Fac Ext Cet Arc Hub Fac Upp Upp Zhi Pro Fac Arm Lab Res Tes Res Qua Acc Active Infowar (turns) 21445 | 124 2155 850 516 . . 691 2099 . 4052 103 492 480 620 368 682 684 954 569 1483 2132 633 1197 561 Sensors 2565 | . . . . . . . . . . . . . . . . . . . . 180 633 1197 555 IFF 10403 | . . . . . . 690 2099 . 4052 99 . . . . . . . . 422 1933 547 . 561 Structural 3488 | . . . . . . 272 . . . 103 492 480 620 363 682 476 . . . . . . . Seismic 5697 | 124 2155 850 516 . . . . . . . . . 336 368 682 666 . . . . . . . Jamming 8287 | . . . . . . . . . . . . . . 6 411 636 954 569 1210 2127 630 1187 557 Robot Analysis Total 9 | . 4 . . 1 . . . . . . . . . 4 . . . . . . . . . Derelict Logs Recovered 12 | . . 1 2 . 4 . . . . . . 3 2 . . . . . . . . . . Drone Launches 20 | . . . . . . . . . . . 11 1 3 . . . 4 . . . . . 1 Drone Recoveries 13 | . . . . . . . . . . . 6 1 3 . . . 2 . . . . . 1 Exploration | -11 -10 -10 -10 -8 -8 -6 -6 -6 -6 -6 -5 -5 -5 -5 -4 -4 -4 -4 -3 -3 -2 -2 -1 ------------- Run | Yrd Mat Min Sub Rec Scr Fac Ext Cet Arc Hub Fac Upp Upp Zhi Pro Fac Arm Lab Res Tes Res Qua Acc Turns Passed 38139 | 354 2203 1328 8866 1833 4349 797 2100 699 4545 103 492 480 620 368 682 684 954 569 1493 2132 633 1197 658 Spaces Moved 16050 | 127 985 730 4121 796 2081 268 714 224 626 61 254 302 435 238 382 320 459 348 761 897 245 429 247 Core 315 | 14 1 . . . 118 . . . 166 . . . . . . . . . . . . . 16 Treads 6786 | 113 984 730 1434 . 381 268 714 176 . . . . . . . . . . 184 897 245 429 231 Legs . | . . . . . . . . . . . . . . . . . . . . . . . . Wheels 8949 | . . . 2687 796 1582 . . 48 460 61 254 302 435 238 382 320 459 348 577 . . . . Hover . | . . . . . . . . . . . . . . . . . . . . . . . . Flight . | . . . . . . . . . . . . . . . . . . . . . . . . Fastest Speed 50 | 50 160 160 90 200 50 160 155 140 140 120 140 120 120 120 120 120 140 130 150 160 160 160 50 Average Speed 198 | 147 160 160 202 216 204 189 235 172 659 139 140 133 120 120 120 126 146 132 159 169 164 166 187 Slowest Speed 2100 | 160 250 240 345 345 560 245 245 312 2100 140 140 140 120 120 120 150 150 140 173 255 240 270 300 Overloaded Moves . | . . . . . . . . . . . . . . . . . . . . . . . . Propulsion Burnouts . | . . . . . . . . . . . . . . . . . . . . . . . . Robots Hopped . | . . . . . . . . . . . . . . . . . . . . . . . . Potential Cave-ins 2 | . . . . . . . . . . . . . . . . . . . . 2 . . . Cave-ins Triggered . | . . . . . . . . . . . . . . . . . . . . . . . . Teleports 2 | . . . . . . . . . . . . . . . . . 1 . . . . 1 . Exploration Rate (%) 56 | 11 99 100 99 99 87 7 88 56 96 12 19 57 72 60 66 12 33 93 24 95 12 46 6 Regions Visited 23 Branch Regions 16 Pre-discovered Areas 13 | . . 1 2 3 4 . . . . . . . . 3 . . . . . . . . . Known Exits Taken 14 | . . 1 1 . . 1 . . . 1 1 1 1 . 1 1 . 1 1 1 1 1 . Unknown Exits Taken 9 | 1 1 . . 1 1 . 1 1 1 . . . . 1 . . 1 . . . . . . Scrap Searched 23 | . . 1 2 . 10 . . . . . . 2 5 . 3 . . . . . . . . Spaces Dug 216 | . . 34 2 . . 6 . 1 3 4 12 5 1 . 12 19 13 . 18 38 15 24 9 Terrain Destroyed 743 | . 38 84 48 . . 7 48 5 5 6 19 11 23 . 32 51 60 . 127 80 23 42 34 Melee 18 | . . . . . . . . . . . . . . . . . . . . . . 18 . Projectile 337 | . . . . . . . 22 5 5 6 19 11 7 . 30 39 26 . 43 74 20 14 16 AOE 351 | . 38 84 48 . . 6 25 . . . . . 16 . 2 12 34 . 80 . . 6 . Terrain Rammed . | . . . . . . . . . . . . . . . . . . . . . . . . Walls Destroyed . | . . . . . . . . . . . . . . . . . . . . . . . . Machines Disabled . | . . . . . . . . . . . . . . . . . . . . . . . . Actions | -11 -10 -10 -10 -8 -8 -6 -6 -6 -6 -6 -5 -5 -5 -5 -4 -4 -4 -4 -3 -3 -2 -2 -1 --------- Run | Yrd Mat Min Sub Rec Scr Fac Ext Cet Arc Hub Fac Upp Upp Zhi Pro Fac Arm Lab Res Tes Res Qua Acc Total 20510 | 232 1528 845 4507 863 2184 445 1024 520 995 71 361 358 518 291 555 501 631 450 930 1216 414 721 350 Wait 2337 | 63 464 77 231 1 . 82 61 205 323 4 63 27 64 . 129 102 24 74 11 47 100 154 31 Move 16028 | 126 984 729 4120 795 2080 267 713 223 625 60 253 301 434 237 381 320 458 347 760 896 244 428 247 Hop . | . . . . . . . . . . . . . . . . . . . . . . . . Pick Up 241 | 4 16 2 27 11 63 7 13 16 3 . 6 4 3 3 2 8 15 4 17 8 3 5 1 Fast Attach 101 | 7 2 . 7 . 3 1 6 4 2 . 3 3 . 4 . . 12 6 13 14 5 2 7 Attach 88 | . . 2 4 1 5 8 5 8 4 . 6 . . . 2 3 4 2 7 7 3 11 6 Detach 24 | . . . . . . . 1 2 1 . 1 . . . . . 1 5 3 5 . 2 3 Swap 216 | . 4 6 14 3 1 15 19 7 3 1 2 4 4 8 3 3 17 1 22 49 22 6 2 Drop 217 | . 8 1 16 . 32 10 20 22 3 . 4 7 3 7 1 1 26 4 22 17 3 7 3 Fire 1021 | 32 46 25 86 20 . 52 55 33 30 6 23 12 10 30 37 63 71 7 75 172 33 53 50 Melee 53 | . . . . . . . . . . . . . . . . . . . . . . 53 . Ram 2 | . . . . 1 . . . . 1 . . . . . . . . . . . . . . Kick . | . . . . . . . . . . . . . . . . . . . . . . . . Crush 16 | . 4 3 . . . 3 3 . . . . . . . . 1 . . . 1 1 . . Escape Stasis 6 | . . . . . . . 6 . . . . . . . . . . . . . . . . Rewire 158 | . . . . 31 . . 122 . . . . . . 2 . . 3 . . . . . . Trap . | . . . . . . . . . . . . . . . . . . . . . . . . Miscellaneous 2 | . . . 2 . . . . . . . . . . . . . . . . . . . . Route ------- -11/Scrapyard -10/Materials (discovered 5 exits: *Mat x3 / *Min / *Sub) -10/Mines (discovered 3 exits: *Mat x2 / *Sub) -10/Subcaves (discovered 3 exits: *Mat x2 / *Rec) -8/Recycling (discovered 2 exits: [*Fac] / *Scr) -8/Scraptown (discovered 2 exits: [*Fac x2]) -6/Factory (discovered 7 exits: Fac x3 / Low x2 / *Ext x2) -6/Extension (discovered 2 exits: *Fac / *Cet) -6/Cetus (discovered 2 exits: *Fac / *Arc) -6/Archives (discovered 3 exits: *Fac / *Hub x2) -6/Hub_04(d) -5/Factory (discovered 3 exits: *Fac / *Upp x2) -5/Upper Caves -5/Upper Caves (discovered 2 exits: *Fac / *Zhi) -5/Zhirov -4/Proximity Caves -4/Factory (discovered 4 exits: Res / Upp x2 / *Arm) -4/Armory (discovered 2 exits: *Res / [*Lab]) -4/Lab -3/Research (discovered 2 exits: *Tes x2) -3/Testing -2/Research (discovered 2 exits: *Qua x2) -2/Quarantine -1/Access History --------- Turn | Location | Event 5 | -11/Scrapyard | Discovered new exit (range 15) 355 | -11/Scrapyard | Entered Materials 356 | -10/Materials | Build established: Mutant 1228 | -10/Materials | Discovered new exit (range 16) 1501 | -10/Materials | Discovered new exit (range 12) 1870 | -10/Materials | Discovered new exit (range 7) 2064 | -10/Materials | Learned 2 Storage zone layouts 2129 | -10/Materials | Identified exit to Materials 2226 | -10/Materials | Learned 2 Mines zone layouts 2262 | -10/Materials | Learned Recycling recycling unit intel 2290 | -10/Materials | Learned 2 Mines zone layouts 2309 | -10/Materials | Learned location of 3 exits from Materials 2374 | -10/Materials | Learned location of 2 exits from Subcaves 2558 | -10/Materials | Entered Mines 2559 | -10/Mines | Learned location of Storage (-8) 2559 | -10/Mines | Identified exit to Subcaves 2598 | -10/Mines | Learned Materials security intel 2613 | -10/Mines | Found a hidden stash of uninstalled traps 2633 | -10/Mines | Received a Rocket Launcher from a helpful Derelict 2893 | -10/Mines | Assembled infested the area 2898 | -10/Mines | Assisted by a Guerilla fighting off Assembled 3016 | -10/Mines | Assisted by bots powering up and referring to "LRC-V3" 3886 | -10/Mines | Entered Subcaves 3886 | -10/Subcaves | Accompanied by 2 allies 3887 | -10/Subcaves | Identified exit to Materials 3921 | -10/Subcaves | Visited Clippyterm 3926 | -10/Subcaves | Identified exit to Recycling 4112 | -10/Subcaves | Learned location of Zion (-7) 4178 | -10/Subcaves | Build established: Scavenger-Mutant 4711 | -10/Subcaves | Build established: Mutant 5398 | -10/Subcaves | Visited 4L-MR0's lab 5689 | -10/Subcaves | Build established: Scavenger-Mutant 5744 | -10/Subcaves | Met a Zionite searching for "candidates" 6074 | -10/Subcaves | Lost 3 parts (2n1u) 6336 | -10/Subcaves | Build established: Mutant 7001 | -10/Subcaves | Learned Materials stockpile data 7062 | -10/Subcaves | Core integrity fell below 50% 7900 | -10/Subcaves | Ambushed by Subdweller buried in earth 7900 | -10/Subcaves | Ambushed by Subdweller buried in earth 8347 | -10/Subcaves | Build established: Hauler-Mutant 9726 | -10/Subcaves | Found Powered Cannon 12071 | -10/Subcaves | Ambushed by angry Subdweller bent on revenge 12752 | -10/Subcaves | Entered Recycling 12753 | -8/Recycling | Loaded intel: 3 recycling unit locations 14109 | -8/Recycling | Discovered new exit (range 15) 14535 | -8/Recycling | Scanned before Scraplab entrance 14563 | -8/Recycling | Entered Scraplab 14579 | -8/Recycling | Discovered new exit (range 3) 14585 | -8/Recycling | Entered Scraptown 14585 | -8/Scraptown | Accompanied by 3 allies 14781 | -8/Scraptown | Visited UFD Registry 14781 | -8/Scraptown | Registered with UFD as "Spikecoil" 14899 | -8/Scraptown | Scanned Subdweller tech in exchange for log data 14905 | -8/Scraptown | Learned Research security intel 14907 | -8/Scraptown | Learned location of 1 exit from Factory 14909 | -8/Scraptown | Learned Research terminal intel 14913 | -8/Scraptown | Learned location of Warlord (-4) 15074 | -8/Scraptown | Visited LU-1G1's Boring Crew 15102 | -8/Scraptown | Visited Junk Repository 15174 | -8/Scraptown | Visited Junk Repository 15366 | -8/Scraptown | Visited Observation Area 15394 | -8/Scraptown | Visited Research Penetration Think Tank 15458 | -8/Scraptown | Visited Curators Association 15498 | -8/Scraptown | Visited Science Testing Area 15530 | -8/Scraptown | Visited DA-N13 Charitable Foundation 15552 | -8/Scraptown | Found DCF Scrap (32 items) 15751 | -8/Scraptown | Visited Cartography Club 15781 | -8/Scraptown | Found Deep Structural Scanner 15793 | -8/Scraptown | Learned location of Upper Caves (-4) 15793 | -8/Scraptown | Learned location of Archives (-6) 15793 | -8/Scraptown | Learned location of Hub_04(d) (-6) 15793 | -8/Scraptown | Learned 8 Factory zone layouts 15793 | -8/Scraptown | Learned 20 Factory zone layouts 15793 | -8/Scraptown | Learned 24 Factory zone layouts 15793 | -8/Scraptown | Learned 12 Research zone layouts 15793 | -8/Scraptown | Learned 8 Access zone layouts 15793 | -8/Scraptown | Learned 4 Mines zone layouts 15793 | -8/Scraptown | Learned Storage emergency access door positions 15793 | -8/Scraptown | Learned 12 Lower Caves zone layouts 15793 | -8/Scraptown | Learned 8 Upper Caves zone layouts 15793 | -8/Scraptown | Learned 20 Upper Caves zone layouts 15793 | -8/Scraptown | Learned 4 Hub_04(d) zone layouts 15793 | -8/Scraptown | Learned location of 1 exit from Factory 15793 | -8/Scraptown | Learned location of 2 exits from Research 15793 | -8/Scraptown | Learned location of 1 exit from Upper Caves 16050 | -8/Scraptown | Visited Awakened 16088 | -8/Scraptown | Visited Shadow of the Wyrm 16166 | -8/Scraptown | Heard Great Nut preacher, LISTEN AND RECITE! 16765 | -8/Scraptown | Visited Spacefarers 16863 | -8/Scraptown | Visited The Evicted 16887 | -8/Scraptown | Visited Bundlers 17267 | -8/Scraptown | Discovered new exit (range 13) 18392 | -8/Scraptown | Build established: Scavenger-Mutant 18910 | -8/Scraptown | Discovered new exit (range 5) 18934 | -8/Scraptown | Entered Factory 18934 | -6/Factory | Evolved 8 slots: Power x1, Propulsion x2, Utility x4, Weapon x1 18935 | -6/Factory | Identified exit to Extension 18936 | -6/Factory | Identified exit to Factory 18937 | -6/Factory | Identified exit to Lower Caves 19230 | -6/Factory | Build established: Scavenger-Tank 19585 | -6/Factory | Garrison activated, responded to threat 19731 | -6/Factory | Entered Extension 20010 | -6/Extension | Lost 4 parts (1p3n) 20417 | -6/Extension | Build established: Derelict-Tank 20706 | -6/Extension | Scrapoid reinforcements arrived 20717 | -6/Extension | Scrapoid reinforcements arrived 20837 | -6/Extension | Build established: Commander-Tank 20907 | -6/Extension | Found Scrap Suit 20910 | -6/Extension | Lost 3 allies 21029 | -6/Extension | Spotted B-75 Beast 21038 | -6/Extension | Allies destroyed B-75 Beast 21044 | -6/Extension | Spotted B-75 Beast 21056 | -6/Extension | Allies destroyed B-75 Beast 21086 | -6/Extension | Lost 3 allies 21250 | -6/Extension | Lost 3 allies 21481 | -6/Extension | First assault squad dispatched 21528 | -6/Extension | Rescued A7 21530 | -6/Extension | Energy Cycler disabled 21530 | -6/Extension | Rescued a captive Derelict 21537 | -6/Extension | Rescued a captive Derelict 21538 | -6/Extension | Rescued a captive Derelict 21540 | -6/Extension | Rescued a captive Derelict 21592 | -6/Extension | Lost 10 allies 21801 | -6/Extension | Discovered exit to Factory (range 10) 21804 | -6/Extension | Discovered new exit (range 6) 21831 | -6/Extension | Entered Cetus 21831 | -6/Cetus | Accompanied by 4 allies (A7) 21836 | -6/Cetus | Acquired a Cetus Manufacturing Module code from A7 21846 | -6/Cetus | Attached Powered Cannon, gained temporary slot: Power 21884 | -6/Cetus | Spotted Cetus Guard 21884 | -6/Cetus | Spotted Cetus Guard 21886 | -6/Cetus | Spotted Cetus Guard 21887 | -6/Cetus | Spotted Cetus Guard 21891 | -6/Cetus | Allies destroyed Cetus Guard 21907 | -6/Cetus | Destroyed Cetus Guard 21914 | -6/Cetus | Destroyed Cetus Guard 21919 | -6/Cetus | Destroyed Cetus Guard 21924 | -6/Cetus | Extracted ID and sensor layout for unrecognized location from A7's data core 21933 | -6/Cetus | Lost 3 allies 22157 | -6/Cetus | Started Cetus Manufacturing Module 22182 | -6/Cetus | Manufactured an Enhanced Grunt 22188 | -6/Cetus | Build established: Scavenger-Mutant 22207 | -6/Cetus | Manufactured an Enhanced Grunt 22232 | -6/Cetus | Manufactured an Enhanced Grunt 22257 | -6/Cetus | Manufactured an Enhanced Grunt 22282 | -6/Cetus | Manufactured an Enhanced Grunt 22322 | -6/Cetus | Discovered new exit (range 15) 22349 | -6/Cetus | Spotted Cetus Guard 22349 | -6/Cetus | Spotted Cetus Guard 22351 | -6/Cetus | Spotted Cetus Guard 22363 | -6/Cetus | Destroyed Cetus Guard 22367 | -6/Cetus | Spotted Cetus Guard 22369 | -6/Cetus | Destroyed Cetus Guard 22371 | -6/Cetus | Destroyed Cetus Guard 22373 | -6/Cetus | Allies destroyed Cetus Guard 22384 | -6/Cetus | Discovered exit to Factory (range 15) 22391 | -6/Cetus | Lost 3 allies 22392 | -6/Cetus | Met Revision 17 22530 | -6/Cetus | Entered Archives 22530 | -6/Archives | Accompanied by 3 allies 22763 | -6/Archives | System corruption reached 10% 22764 | -6/Archives | Discovered exit to Factory (range 16) 23062 | -6/Archives | Discovered new exit (range 15) 23245 | -6/Archives | Discovered new exit (range 15) 23423 | -6/Archives | Unable to access archive contents 23733 | -6/Archives | Build established: Scavenger-Tank 27075 | -6/Archives | Entered Hub_04(d) 27075 | -6/Hub_04(d) | Accompanied by 3 allies 27092 | -6/Hub_04(d) | Network Hub disabled 27092 | -6/Hub_04(d) | Network Hub disabled 27115 | -6/Hub_04(d) | Spotted B-75 Beast 27178 | -6/Hub_04(d) | Entered Factory 27178 | -5/Factory | Evolved 2 slots: Utility x2 27179 | -5/Factory | Identified exit to Upper Caves 27189 | -5/Factory | Lost 3 allies 27520 | -5/Factory | Scrapoid reinforcements arrived 27612 | -5/Factory | Discovered new exit (range 10) 27670 | -5/Factory | Entered Upper Caves 27670 | -5/Upper Caves | Accompanied by 5 allies 27671 | -5/Upper Caves | Identified exit to Upper Caves 27672 | -5/Upper Caves | Attracted the attention of an 0b10 checkpoint 27689 | -5/Upper Caves | Encountered a Warlord checkpoint 27767 | -5/Upper Caves | Learned Factory terminal intel 27817 | -5/Upper Caves | Learned Factory terminal intel 27978 | -5/Upper Caves | Learned location of 1 exit from Factory 28028 | -5/Upper Caves | Found Scrap Suit 28059 | -5/Upper Caves | Spotted B-75 Beast 28066 | -5/Upper Caves | Allies destroyed B-75 Beast 28069 | -5/Upper Caves | Found Scrap Suit 28150 | -5/Upper Caves | Entered another Upper Caves area 28150 | -5/Upper Caves | Accompanied by 3 allies 28151 | -5/Upper Caves | Identified exit to Zhirov 28152 | -5/Upper Caves | Identified exit to Factory 28322 | -5/Upper Caves | Learned location of 1 exit from Factory 28770 | -5/Upper Caves | Entered Zhirov 28770 | -5/Zhirov | Accompanied by 3 allies 28770 | -5/Zhirov | Discovered new exit (range 3) 28792 | -5/Zhirov | Met Zhirov 28816 | -5/Zhirov | Learned location of Quarantine (-2) 28816 | -5/Zhirov | Learned location of Testing (-3) 28816 | -5/Zhirov | Learned location of Command (-1) 28827 | -5/Zhirov | Zhirov requested help retrieving the SGEMP Prototype 28845 | -5/Zhirov | Found Alien Artifact 28845 | -5/Zhirov | Identified Integrated Reactor 28845 | -5/Zhirov | Installed Integrated Reactor, increased core energy generation (+10) 28862 | -5/Zhirov | Found Alien Artifact 29138 | -5/Zhirov | Entered Proximity Caves 29138 | -4/Proximity Caves | Accompanied by 3 allies 29547 | -4/Proximity Caves | Attracted the attention of an 0b10 checkpoint 29808 | -4/Proximity Caves | Discovered exit to Factory (range 8) 29820 | -4/Proximity Caves | Entered Factory 29820 | -4/Factory | Evolved 2 slots: Propulsion x1, Utility x1 29821 | -4/Factory | Identified exit to Upper Caves 29821 | -4/Factory | Identified exit to Research 29822 | -4/Factory | Loaded intel: 26 terminal locations 29995 | -4/Factory | Identified exit to Armory 30275 | -4/Factory | Fabricated Huge Storage Unit (x1) 30504 | -4/Factory | Entered Armory 30837 | -4/Armory | Found Prototype Hackware 30976 | -4/Armory | Assisted by bots powering up and referring to "LRC-V3" 31034 | -4/Armory | Identified Transdimensional Reconstructor 31034 | -4/Armory | Warped through subspace to slip node 31034 | -4/Armory | Discovered new exit (range 1) 31049 | -4/Armory | Lost 10 allies 31060 | -4/Armory | Found Gamma Bomb Array 31271 | -4/Armory | Discovered exit to Research (range 8) 31458 | -4/Armory | Entered Lab 31460 | -4/Lab | Discovered exit to Research (range 9) 31475 | -4/Lab | Hidden lab's door opened automatically 31475 | -4/Lab | Sensor layout match revealed 31476 | -4/Lab | Gained access to the hidden lab's interior 31529 | -4/Lab | Found Alien Artifact 31698 | -4/Lab | Found Alien Artifact 31698 | -4/Lab | Identified Core Regenerator 31698 | -4/Lab | Used Core Regenerator, restored core integrity (+287) 31707 | -4/Lab | Found Alien Artifact 31707 | -4/Lab | Identified Integrated Dissipator 31707 | -4/Lab | Installed Integrated Dissipator, increased core heat dissipation (+20) 31747 | -4/Lab | Build established: Scavenger-Mutant 31775 | -4/Lab | Found Transdimensional Reconstructor 31898 | -4/Lab | Found Prototype Energy Gun 31898 | -4/Lab | Identified Hyp. EM Gauss Rifle 31905 | -4/Lab | Found Prototype Protection 31905 | -4/Lab | Identified Med. Regenerative Plating 31920 | -4/Lab | Found Hyp. EM Gauss Rifle 31933 | -4/Lab | Found Prototype Hackware 32010 | -4/Lab | Identified Core Reset Matrix 32010 | -4/Lab | Used Core Reset Matrix 32014 | -4/Lab | Discovered exit to Research (range 9) 32027 | -4/Lab | Entered Research 32027 | -3/Research | Evolved 2 slots: Power x1, Propulsion x1 32181 | -3/Research | Build established: Scavenger-Gunner 32227 | -3/Research | Revision forces began assault on 0b10 32250 | -3/Research | Met up with Revision 17++ 32285 | -3/Research | Identified Exp. Hacking Suite 32304 | -3/Research | Identified Deep Network Scanner 32467 | -3/Research | Lost 4 allies 32545 | -3/Research | Build established: Scavenger-Tank 32647 | -3/Research | Identified exit to Testing 32727 | -3/Research | Research terminal network offline 33090 | -3/Research | Found Prototype Processor 33090 | -3/Research | Identified Exp. Terrain Scan Processor 33143 | -3/Research | Build established: Hacker-Gunner 33354 | -3/Research | Spotted Striker 33395 | -3/Research | Lost 3 parts (2p1u) 33402 | -3/Research | Destroyed Striker 33520 | -3/Research | Entered Testing 33822 | -3/Testing | Found Prototype Energy Cannon 33881 | -3/Testing | Identified exit to Research 33964 | -3/Testing | Found Prototype Hackware 33964 | -3/Testing | Identified Ghost Barrier 34278 | -3/Testing | Build established: Hacker-Tank 34710 | -3/Testing | Spotted Striker 34714 | -3/Testing | Spotted Striker 34798 | -3/Testing | Found Prototype Ballistic Cannon 34798 | -3/Testing | Identified Omega Cannon 34903 | -3/Testing | Found Prototype Ballistic Cannon 34903 | -3/Testing | Identified Perforator 35231 | -3/Testing | System corruption reached 10% 35366 | -3/Testing | Found Prototype Processor 35366 | -3/Testing | Identified Spectral Analyzer 35405 | -3/Testing | Found Prototype Launcher 35405 | -3/Testing | Identified Mni. Smartbomb Launcher 35530 | -3/Testing | Identified Hpw. Disruptor Cannon 35576 | -3/Testing | Scanned by Researcher 35652 | -3/Testing | Entered Research 35652 | -2/Research | Evolved 2 slots: Utility x1, Weapon x1 35759 | -2/Research | Repaired Centrium Heavy Treads 35780 | -2/Research | Build established: Hacker-Skirmisher 35917 | -2/Research | Identified exit to Quarantine 36054 | -2/Research | Repaired Hyp. Railgun 36285 | -2/Research | Entered Quarantine 36286 | -2/Quarantine | Detected hypermatrix surge 36286 | -2/Quarantine | Sensed 12 artifacts in vicinity 36309 | -2/Quarantine | Found Sigix Broadsword 36616 | -2/Quarantine | Build established: Hacker-Mutant 36861 | -2/Quarantine | Discovered new exit (range 15) 36927 | -2/Quarantine | Identified exit to Access 37184 | -2/Quarantine | System corruption reached 10% 37414 | -2/Quarantine | System corruption reached 30% 37453 | -2/Quarantine | Warped through subspace 37476 | -2/Quarantine | Lost 8 parts (2p3n2u1w) 37482 | -2/Quarantine | Entered Access 37482 | -1/Access | Evolved 2 slots: Power x1, Utility x1 37755 | -1/Access | Build established: Generator-Skirmisher 38050 | -1/Access | System corruption reached 10% 38066 | -1/Access | Released all parts (11) 38069 | -1/Access | Found Prototype Launcher 38069 | -1/Access | Identified Enh. Gamma Bomb Array 38086 | -1/Access | System corruption reached 30% 38140 | -1/Access | Self-destructed Last Messages --------------- 38130_ Wall collapses. 38131_ KE Penetrator destroyed. 38132_ HV Slug penetrates Earth. 38132_ HV Slug penetrates Wall. 38132_ HV Slug penetrates Earth. 38132_ HV Slug penetrates Wall. 38132_ HV Slug penetrates Earth. 38132_ HV Slug penetrates Wall. 38133_ System corrupted: Energy discharge (-40). 38134_ Wall collapses. 38134_ K-01 Serf collects debris. 38136_ HV Slug penetrates Earth. 38136_ HV Slug penetrates Wall. 38136_ HV Slug penetrates P-80 Master. 38136_ P-80 Master suffers critical hit (Destroy). 38136_ Destroyed Unknown Hover Unit. 38136_ HV Slug penetrates P-80 Master. 38136_ HV Slug penetrates Wall. 38138_ Wall collapses. Map ----- +----------------------------------------------------+ | ?????????????????????????????????????????????????? | | ?????????????????????????????????????????????????? | | ?????????????????????????????????????????????????? | | ?????????????????????????????????????????????????? | | ?????????????????????????????????????????????????? | | ?????????????????????????????????????????????????? | | ?????????????????????????????????????????????????? | | ?##############??????????????????????????????????? | | ?# #??????????????????????????????????? | | ?# = #??????????????????????????????????? | | ??? "" #??????????????????????????????????? | | ?#??""""" """#??????????????????????????????????? | | ?# """"" T"#??????????????????????????????????? | | ?# """"" """#??????????????????????????????????? | | ?# """"" "" #################??????????????????? | | ?# """"" ## # #??????????????????? | | ?# ## ##???????????????????? | | ?# ## #????????????????????? | | ?# ## #????????????????????? | | ?# ## #????????????????????? | | ?#######+####### #????????????????????? | | ????# #??# #??##????????????????? | | ????# #??# #?# #????????????????? | | ???## #??# ## #????????????????? | | ???## #??# * #????????????????? | | ????# #??# @!!! #?????????????????? | | ????# #?#; !!]* #?????????????????? | | ????# ##########/#; !! ###????????????????? | | ????# Q = ! #????????????????? | | ????# # ###????????????????? | | ????# ; ###??????????????????? | | ????# % ; #????????????????????? | | ????# p;##????????????????????? | | ????# ! ;#?????????????????????? | | ????# ;#?????????????????????? | | ???###########++### ??????????????????? | | ???# ; ?????????????????? | | ???# ; ?????????????????? | | ???# """"""" ; gg ????????????????? | | ???# """"""" " g ???????????????? | | ???# " ??????????????? | | ???# # ??????????????? | | ???##########""########### #???????????????? | | ????????????# """""?? # #???????????????? | | ????????????# """""" # ?????????????????? | | ????????????# """""" / ????????????????? | | ????????????# """""" #? ????????????????? | | ????????????# """""" #? ?????????????????? | | ????????????# #? ???????????????????? | | ????????????# = #???????????????????????? | +----------------------------------------------------+ Best States ------------- Heat Dissipation 104 Energy Generation 87 Energy Capacity 850 Matter Stores 300 Matter Capacity 600 Sight Range 16 Robot Scan Range 16 Terrain Scan Density 1010 Jamming Range 16 Power Amplification 40 Corruption Containment 20 Armor Coverage 825 Core Shielding 40 Evasion (%) 50 Targeting Accuracy 14 Launcher Accuracy 30 Target Analysis 8 Recoil Reduction 8 Energy Filtering 50 Particle Charging 20 Offensive Hacking 41 Defensive Hacking 20 Authchip Count 1 Item Schematics ----------------- Hds. Centrium Wheel | -3/Testing | Archive Adv. Plasma Rifle | -3/Testing | Archive Com. Tesla Bomb Launcher | -3/Testing | Archive Adv. Myomer Leg | -3/Testing | Archive Exp. Flexi-carbon Leg | -3/Testing | Archive Exp. Matter Compressor | -3/Testing | Archive Robot Schematics ------------------ B-74 Champion | -3/Testing | Archive Fabricated ------------ Huge Storage Unit | x1 | -4/Factory Repaired ---------- Centrium Heavy Treads | 1% | -2/Research Hyp. Railgun | 12% | -2/Research Alien Tech Used ----------------- Integrated Reactor Transdimensional Reconstructor Core Regenerator Integrated Dissipator Core Reset Matrix Sigix Broadsword Achievements -------------- Packrat Challenges ------------ None Game ------ Seed BeamFrostExoskeleton Manual? 0 Play Time 03:41:01 Cumulative 205.0 hours Start 2025.09.14 @ 15:35:37 End 2025.09.15 @ 17:13:55 Sessions 23 Manual Loads 0 Difficulty Rogue Special Mode None Game No. 112 Rogue 112 Adventurer 0 Explorer 0 Win Type - Total 23 Types 10/1/8/1/0/1/1/1/0/0 Lore% 76 Gallery% 67 Achievement% 72 Wizard Run 0 Options --------- Layout 1 ASCII 0 Keyboard 0 Movement Arrows Keybinds 0 Fullscreen 2 Font 24/Tamsyn Map View 50x35 Zoom Use 0% Tactical HUD 1 Map Filters NONE Filters NONE Steam 1 RUN: f3e04bd9-16bb-4fb4-aec9-c7b04183d716